fUSD/lending_fUSD_20250304
["ID","MTS","AMOUNT","RATE_DAILY","PERIOD"]
[355382330,1741091945246,-500.0,0.0001123,2]
[355382331,1741091945268,-500.0,0.0001123,2]
[355382332,1741091945291,-500.0,0.0001123,2]
[355382333,1741091945316,-500.0,0.0001123,2]
[355382334,1741091945339,-500.0,0.0001123,2]
[355382335,1741091945360,-500.0,0.0001123,2]
[355382336,1741091945382,-500.0,0.0001123,2]
[355382337,1741091945403,-500.0,0.0001123,2]
[355382338,1741091945425,-500.0,0.0001123,2]
[355382339,1741091945451,-500.0,0.0001123,2]
[355382340,1741091945472,-500.0,0.0001123,2]
[355382341,1741091945495,-500.0,0.0001123,2]
[355382342,1741091945519,-500.0,0.0001123,2]
[355382343,1741091945542,-500.0,0.0001123,2]
[355382344,1741091945566,-500.0,0.0001123,2]
[355382345,1741091945588,-500.0,0.0001123,2]
[355382346,1741091945611,-500.0,0.0001123,2]
[355382347,1741091945633,-500.0,0.0001123,2]
[355382348,1741091945655,-500.0,0.0001123,2]
[355382349,1741091945676,-500.0,0.0001123,2]
[355382350,1741091945698,-500.0,0.0001123,2]
[355382351,1741091945720,-500.0,0.0001123,2]
[355382352,1741091945742,-500.0,0.0001123,2]
[355382353,1741091945764,-500.0,0.0001123,2]
[355382354,1741091945786,-500.0,0.0001123,2]
[355382355,1741091945809,-500.0,0.0001123,2]
[355382356,1741091945832,-500.0,0.0001123,2]
[355382357,1741091945854,-500.0,0.0001123,2]
[355382358,1741091945876,-500.0,0.0001123,2]
[355382359,1741091945897,-500.0,0.0001123,2]
[355382360,1741091945919,-500.0,0.0001123,2]
[355382361,1741091945940,-500.0,0.0001123,2]
[355382362,1741091945962,-500.0,0.0001123,2]
[355382363,1741091945983,-500.0,0.0001123,2]
[355382364,1741091946006,-500.0,0.0001123,2]
[355382365,1741091946027,-502.0,0.0001123,2]
[355382366,1741091946050,-500.0,0.0001123,2]
[355382367,1741091946072,-500.0,0.0001123,2]
[355382368,1741091946095,-500.0,0.0001123,2]
[355382369,1741091946117,-500.0,0.0001123,2]
[355382370,1741091946140,-500.0,0.0001123,2]
[355382371,1741091946163,-500.0,0.0001123,2]
[355382372,1741091946185,-500.0,0.0001123,2]
[355382373,1741091946207,-500.0,0.0001123,2]
[355382374,1741091946229,-500.0,0.0001123,2]
[355382375,1741091946250,-500.0,0.0001123,2]
[355382376,1741091946273,-500.0,0.0001123,2]
[355382377,1741091946296,-500.0,0.0001123,2]
[355382378,1741091946320,-500.0,0.0001123,2]
[355382379,1741091946341,-500.0,0.0001123,2]
[355382380,1741091946363,-500.0,0.0001123,2]
[355382381,1741091946385,-500.0,0.0001123,2]
[355382382,1741091946407,-500.0,0.0001123,2]
[355382383,1741091946429,-500.0,0.0001123,2]
[355382384,1741091946454,-500.0,0.0001123,2]
[355382385,1741091946476,-500.0,0.0001123,2]
[355382386,1741091946498,-500.0,0.0001123,2]
[355382387,1741091946522,-500.0,0.0001123,2]
[355382388,1741091946544,-500.0,0.0001123,2]
[355382389,1741091946568,-500.0,0.0001123,2]
[355382390,1741091946590,-500.0,0.0001123,2]
[355382391,1741091946613,-500.0,0.0001123,2]
[355382392,1741091946635,-500.0,0.0001123,2]
[355382393,1741091946821,-500.0,0.0001123,2]
[355382394,1741091946844,-500.0,0.0001123,2]
[355382395,1741091946866,-500.0,0.0001123,2]
[355382396,1741091946889,-500.0,0.0001123,2]
[355382397,1741091946911,-500.0,0.0001123,2]
[355382398,1741091946933,-500.0,0.0001123,2]
[355382399,1741091946955,-500.0,0.0001123,2]
[355382400,1741091946977,-500.0,0.0001123,2]
[355382401,1741091946999,-500.0,0.0001123,2]
[355382402,1741091947022,-500.0,0.0001123,2]
[355382403,1741091947044,-500.0,0.0001123,2]
[355382404,1741091947069,-500.0,0.0001123,2]
[355382405,1741091947093,-500.0,0.0001123,2]
[355382406,1741091947116,-500.0,0.0001123,2]
[355382407,1741091947139,-500.0,0.0001123,2]
[355382408,1741091947161,-500.0,0.0001123,2]
[355382409,1741091947184,-500.0,0.0001123,2]
[355382410,1741091947206,-500.0,0.0001123,2]
[355382411,1741091947228,-500.0,0.0001123,2]
[355382412,1741091947251,-500.0,0.0001123,2]
[355382413,1741091947273,-500.0,0.0001123,2]
[355382414,1741091947294,-500.0,0.0001123,2]
[355382415,1741091947317,-500.0,0.0001123,2]
[355382416,1741091947338,-500.0,0.0001123,2]
[355382417,1741091947361,-500.0,0.0001123,2]
[355382418,1741091947383,-500.0,0.0001123,2]
[355382419,1741091947404,-500.0,0.0001123,2]
[355382420,1741091947426,-500.0,0.0001123,2]
[355382421,1741091947451,-500.0,0.0001123,2]
[355382422,1741091947474,-500.0,0.0001123,2]
[355382423,1741091947496,-500.0,0.0001123,2]
[355382424,1741091947518,-500.0,0.0001123,2]
[355382425,1741091947541,-500.0,0.0001123,2]
[355382426,1741091947564,-500.0,0.0001123,2]
[355382427,1741091947586,-500.0,0.0001123,2]
[355382428,1741091947608,-500.0,0.0001123,2]
[355382429,1741091947630,-500.0,0.0001123,2]
[355382430,1741091947652,-500.0,0.0001123,2]
[355382431,1741091947673,-500.0,0.0001123,2]
[355382432,1741091947694,-500.0,0.0001123,2]
[355382433,1741091947716,-500.0,0.0001123,2]
[355382434,1741091947738,-500.0,0.0001123,2]
[355382435,1741091947759,-500.0,0.0001123,2]
[355382436,1741091947781,-500.0,0.0001123,2]
[355382437,1741091947804,-500.0,0.0001123,2]
[355382438,1741091947826,-500.0,0.0001123,2]
[355382439,1741091947848,-500.0,0.0001123,2]
[355382440,1741091947871,-500.0,0.0001123,2]
[355382441,1741091947892,-500.0,0.0001123,2]
[355382442,1741091947915,-500.0,0.0001123,2]
[355382443,1741091947937,-500.0,0.0001123,2]
[355382444,1741091947960,-500.0,0.0001123,2]
[355382445,1741091947985,-527.0,0.0001123,2]
[355382446,1741091948008,-151.0,0.0001123,2]
[355382447,1741091948032,-151.0,0.0001123,2]
[355382448,1741091948056,-151.0,0.0001123,2]
[355382449,1741091948081,-894.51236,0.0001123,2]
[355382450,1741091948106,-151.0,0.0001123,2]
[355382451,1741091948129,-151.0,0.0001123,2]
[355382452,1741091948152,-151.0,0.0001123,2]
[355382453,1741091948174,-151.0,0.0001123,2]
[355382454,1741091948198,-285.178453,0.0001123,2]
[355382455,1741091948221,-156.0,0.0001123,3]
[355382456,1741091948245,-856.1854923,0.00011233,2]
[355382457,1741091948267,-1077.04665417,0.0001125,2]
[355382458,1741091948290,-150.0,0.00011264,2]
[355382459,1741091948313,-500.0,0.00011273,2]
[355382460,1741091948337,-151.0,0.0001128,2]
[355382461,1741091948361,-151.0,0.0001128,2]
[355382462,1741091948386,-5207.81362081,0.00011281,2]
[355382463,1741091948409,-550.0,0.00011281,2]
[355382464,1741091948433,-550.0,0.00011281,2]
[355382465,1741091948460,-151.0,0.00011281,2]
[355382466,1741091948485,-151.0,0.00011281,2]
[355382467,1741091948510,-151.0,0.00011281,2]
[355382468,1741091948541,-151.0,0.00011281,2]
[355382469,1741091948566,-151.0,0.00011281,2]
[355382470,1741091948592,-856.1854923,0.00011288,2]
[355382471,1741091948616,-150.0,0.00011337,2]
[355382472,1741091948640,-150.0,0.00011337,2]
[355382473,1741091948664,-150.36,0.00011339,2]
[355382474,1741091948690,-856.1854923,0.00011342,2]
[355382475,1741091948714,-151.0,0.00011348,2]
[355382476,1741091948736,-277.308,0.00011349,2]
[355382477,1741091948758,-233.0,0.00011349,2]
[355382478,1741091948782,-9008.96109994,0.00011354,2]
[355382479,1741091948807,-150.761,0.00011365,2]
[355382480,1741091948830,-150.0,0.00011365,2]
[355382481,1741091948852,-152.467,0.00011365,2]
[355382482,1741091948875,-214.082,0.00011365,2]
[355382483,1741091948897,-281.126,0.00011365,2]
[355382484,1741091948920,-250.0,0.00011365,2]
[355382485,1741091948943,-248.312,0.00011365,2]
[355382486,1741091948967,-206.49,0.00011365,2]
[355382487,1741091948991,-259.59713977,0.00011365,2]
[355382488,1741091949016,-470.764001,0.00011365,2]
[355382489,1741091949041,-470.764001,0.00011365,2]
[355382490,1741091949066,-500.0,0.00011365,2]
[355382491,1741091949089,-500.0,0.00011365,2]
[355382492,1741091949111,-150.0,0.00011365,2]
[355382493,1741091949133,-500.0,0.00011365,2]
[355382494,1741091949156,-150.0,0.00011365,2]
[355382495,1741091949179,-3187.0,0.00011365,2]
[355382496,1741091949201,-875.0,0.00011365,2]
[355382497,1741091949222,-500.0,0.00011365,2]
[355382498,1741091949244,-150.0,0.00011365,2]
[355382499,1741091949271,-856.1854923,0.0001137,2]
[355382500,1741091949312,-500.0,0.00011392,2]
[355382501,1741091949352,-500.0,0.00011392,2]
[355382502,1741091949547,-500.0,0.00011392,2]
[355382503,1741091949576,-500.0,0.00011392,2]
[355382504,1741091949600,-500.0,0.00011392,2]
[355382505,1741091949625,-500.0,0.00011392,2]
[355382506,1741091949649,-500.0,0.00011392,2]
[355382507,1741091949673,-500.0,0.00011392,2]
[355382508,1741091949696,-500.0,0.00011392,2]
[355382509,1741091949719,-500.0,0.00011392,2]
[355382510,1741091949741,-500.0,0.00011392,2]
[355382511,1741091949764,-500.0,0.00011392,2]
[355382512,1741091949787,-500.0,0.00011392,2]
[355382513,1741091949815,-500.0,0.00011392,2]
[355382514,1741091949838,-500.0,0.00011392,2]
[355382515,1741091949861,-500.0,0.00011392,2]
[355382516,1741091949884,-500.0,0.00011392,2]
[355382517,1741091949907,-500.0,0.00011392,2]
[355382518,1741091949930,-500.0,0.00011392,2]
[355382519,1741091949952,-500.0,0.00011392,2]
[355382520,1741091949975,-500.0,0.00011392,2]
[355382521,1741091949998,-500.0,0.00011392,2]
[355382522,1741091950020,-500.0,0.00011392,2]
[355382523,1741091950042,-500.0,0.00011392,2]
[355382524,1741091950070,-500.0,0.00011392,2]
[355382525,1741091950114,-500.0,0.00011392,2]
[355382526,1741091950157,-500.0,0.00011392,2]
[355382527,1741091950198,-500.0,0.00011392,2]
[355382528,1741091950221,-500.0,0.00011392,2]
[355382529,1741091950243,-500.0,0.00011392,2]
[355382530,1741091950266,-500.0,0.00011392,2]
[355382531,1741091950289,-500.0,0.00011392,2]
[355382532,1741091950317,-500.0,0.00011392,2]
[355382533,1741091950342,-500.0,0.00011392,2]
[355382534,1741091950367,-500.0,0.00011392,2]
[355382535,1741091950389,-500.0,0.00011392,2]
[355382536,1741091950412,-500.0,0.00011392,2]
[355382537,1741091950435,-500.0,0.00011392,2]
[355382538,1741091950466,-500.0,0.00011392,2]
[355382539,1741091950494,-500.0,0.00011392,2]
[355382540,1741091950520,-500.0,0.00011392,2]
[355382541,1741091950550,-500.0,0.00011392,2]
[355382542,1741091950577,-500.0,0.00011392,2]
[355382543,1741091950604,-500.0,0.00011392,2]
[355382544,1741091950631,-500.0,0.00011392,2]
[355382545,1741091950661,-500.0,0.00011392,2]
[355382546,1741091950688,-500.0,0.00011392,2]
[355382547,1741091950716,-500.0,0.00011392,2]
[355382548,1741091950744,-500.0,0.00011392,2]
[355382549,1741091950770,-500.0,0.00011392,2]
[355382550,1741091950797,-500.0,0.00011392,2]
[355382551,1741091950821,-500.0,0.00011392,2]
[355382552,1741091950844,-500.0,0.00011392,2]
[355382553,1741091950866,-500.0,0.00011392,2]
[355382554,1741091950888,-500.0,0.00011392,2]
[355382555,1741091950911,-500.0,0.00011392,2]
[355382556,1741091950934,-500.0,0.00011392,2]
[355382557,1741091950957,-500.0,0.00011392,2]
[355382558,1741091950981,-500.0,0.00011392,2]
[355382559,1741091951003,-500.0,0.00011392,2]
[355382560,1741091951026,-500.0,0.00011392,2]
[355382561,1741091951049,-500.0,0.00011392,2]
[355382562,1741091951075,-500.0,0.00011392,2]
[355382563,1741091951098,-500.0,0.00011392,2]
[355382564,1741091951121,-500.0,0.00011392,2]
[355382565,1741091951145,-500.0,0.00011392,2]
[355382566,1741091951168,-500.0,0.00011392,2]
[355382567,1741091951192,-500.0,0.00011392,2]
[355382568,1741091951215,-500.0,0.00011392,2]
[355382569,1741091951239,-500.0,0.00011392,2]
[355382570,1741091951263,-500.0,0.00011392,2]
[355382571,1741091951287,-500.0,0.00011392,2]
[355382572,1741091951313,-500.0,0.00011392,2]
[355382573,1741091951335,-500.0,0.00011392,2]
[355382574,1741091951357,-500.0,0.00011392,2]
[355382575,1741091951380,-500.0,0.00011392,2]
[355382576,1741091951403,-500.0,0.00011392,2]
[355382577,1741091951425,-500.0,0.00011392,2]
[355382578,1741091951451,-500.0,0.00011392,2]
[355382579,1741091951473,-500.0,0.00011392,2]
[355382580,1741091951497,-500.0,0.00011392,2]
[355382581,1741091951521,-500.0,0.00011392,2]
[355382582,1741091951544,-500.0,0.00011392,2]
[355382583,1741091951569,-500.0,0.00011392,2]
[355382584,1741091951592,-500.0,0.00011392,2]
[355382585,1741091951617,-500.0,0.00011392,2]
[355382586,1741091951640,-500.0,0.00011392,2]
[355382587,1741091951663,-500.0,0.00011392,2]
[355382588,1741091951686,-500.0,0.00011392,2]
[355382589,1741091951708,-500.0,0.00011392,2]
[355382590,1741091951730,-500.0,0.00011392,2]
[355382591,1741091951752,-500.0,0.00011392,2]
[355382592,1741091951775,-500.0,0.00011392,2]
[355382593,1741091951799,-500.0,0.00011392,2]
[355382594,1741091951822,-500.0,0.00011392,2]
[355382595,1741091951845,-500.0,0.00011392,2]
[355382596,1741091951867,-500.0,0.00011392,2]
[355382597,1741091951890,-500.0,0.00011392,2]
[355382598,1741091951912,-500.0,0.00011392,2]
[355382599,1741091951935,-500.0,0.00011392,2]
[355382600,1741091951958,-151.0,0.00011392,2]
[355382601,1741091951981,-151.0,0.00011392,2]
[355382602,1741091952004,-151.0,0.00011392,2]
[355382603,1741091952027,-151.0,0.00011392,2]
[355382604,1741091952049,-500.0,0.00011392,2]
[355382605,1741091952072,-500.0,0.00011392,2]
[355382606,1741091952095,-959.19810172,0.00011392,2]
[355382607,1741091952117,-3187.0,0.00011392,2]
[355382608,1741091952305,-875.0,0.00011392,2]
[355382609,1741091952328,-500.0,0.00011392,2]
[355382610,1741091952351,-150.0,0.00011392,2]
[355382611,1741091952374,-574.0,0.000114,2]
[355382612,1741091952396,-150.0,0.00011409,2]
[355382613,1741091952420,-150.0,0.00011409,2]
[355382614,1741091952444,-151.0,0.00011418,2]
[355382615,1741091952466,-500.0,0.0001142,2]
[355382616,1741091952489,-500.0,0.0001142,2]
[355382617,1741091952511,-3187.0,0.0001142,2]
[355382618,1741091952534,-875.0,0.0001142,2]
[355382619,1741091952558,-500.0,0.0001142,2]
[355382620,1741091952581,-150.0,0.0001142,2]
[355382621,1741091952603,-856.1854923,0.00011425,2]
[355382622,1741091952625,-151.0,0.0001143,2]
[355382623,1741091952648,-5207.81362081,0.00011432,2]
[355382624,1741091952670,-500.0,0.00011447,2]
[355382625,1741091952692,-500.0,0.00011447,2]
[355382626,1741091952713,-3187.0,0.00011447,2]
[355382627,1741091952734,-875.0,0.00011447,2]
[355382628,1741091952757,-965.39343467,0.00011447,2]
[355382629,1741091952778,-150.0,0.00011447,2]
[355382630,1741091952800,-364.11825723,0.00011466,2]
[355382631,1741091952823,-500.0,0.00011475,2]
[355382632,1741091952845,-500.0,0.00011475,2]
[355382633,1741091952868,-3187.0,0.00011475,2]
[355382634,1741091952889,-875.0,0.00011475,2]
[355382635,1741091952911,-276.20183828,0.00011475,2]
[355382636,1741091952933,-151.0,0.00011475,2]
[355382637,1741091952955,-151.0,0.00011475,2]
[355382638,1741091952977,-856.1854923,0.00011479,2]
[355382639,1741091952999,-935.74885374,0.00011502,2]
[355382640,1741091953024,-644.76050526,0.00011502,2]
[355382641,1741091953048,-3187.0,0.00011502,2]
[355382642,1741091953073,-875.0,0.00011502,2]
[355382643,1741091953096,-2751.0,0.00011507,2]
[355382644,1741091953119,-9008.96109994,0.00011516,2]
[355382645,1741091953143,-533.03,0.0001152,2]
[355382646,1741091953166,-3187.0,0.00011529,2]
[355382647,1741091953189,-875.0,0.00011529,2]
[355382648,1741091953212,-856.1854923,0.00011534,2]
[355382649,1741091953234,-3187.0,0.00011557,2]
[355382650,1741091953256,-875.0,0.00011557,2]
[355382651,1741091953279,-470.764001,0.0001158,2]
[355382652,1741091953300,-470.764001,0.0001158,2]
[355382653,1741091953325,-5207.81362081,0.00011582,2]
[355382654,1741091953347,-151.0,0.00011584,2]
[355382655,1741091953369,-3187.0,0.00011584,2]
[355382656,1741091953393,-875.0,0.00011584,2]
[355382657,1741091953416,-151.0,0.00011595,2]
[355382658,1741091953439,-3187.0,0.00011612,2]
[355382659,1741091953464,-875.0,0.00011612,2]
[355382660,1741091953487,-154.370806,0.00011612,2]
[355382661,1741091953509,-1000.0,0.0001162,2]
[355382662,1741091953534,-3187.0,0.00011639,2]
[355382663,1741091953557,-875.0,0.00011639,2]
[355382664,1741091953579,-3187.0,0.00011666,2]
[355382665,1741091953602,-875.0,0.00011666,2]
[355382666,1741091953626,-9008.96109994,0.00011678,2]
[355382667,1741091953649,-3187.0,0.00011694,2]
[355382668,1741091953672,-875.0,0.00011694,2]
[355382669,1741091953693,-3187.0,0.00011721,2]
[355382670,1741091953715,-875.0,0.00011721,2]
[355382671,1741091953739,-5207.81362081,0.00011733,2]
[355382672,1741091953761,-151.0,0.00011748,2]
[355382673,1741091953783,-3187.0,0.00011749,2]
[355382674,1741091953806,-875.0,0.00011749,2]
[355382675,1741091953829,-3187.0,0.00011776,2]
[355382676,1741091953851,-875.0,0.00011776,2]
[355382677,1741091953874,-2500.0,0.00011778,2]
[355382678,1741091953896,-2500.0,0.00011778,2]
[355382679,1741091953918,-8835.0,0.00011781,2]
[355382680,1741091953941,-470.764001,0.00011781,2]
[355382681,1741091953964,-470.764001,0.00011781,2]
[355382682,1741091953986,-151.0,0.000118,2]
[355382683,1741091954009,-1000.0,0.000118,4]
[355382684,1741091954032,-250.0,0.000118,2]
[355382685,1741091954054,-250.0,0.000118,2]
[355382686,1741091954076,-250.0,0.000118,2]
[355382687,1741091954097,-250.0,0.000118,2]
[355382688,1741091954120,-250.0,0.000118,2]
[355382689,1741091954142,-250.0,0.000118,2]
[355382690,1741091954164,-250.0,0.000118,2]
[355382691,1741091954186,-250.0,0.000118,2]
[355382692,1741091954208,-250.0,0.000118,2]
[355382693,1741091954230,-250.0,0.000118,2]
[355382694,1741091954253,-250.0,0.000118,2]
[355382695,1741091954275,-250.0,0.000118,2]
[355382696,1741091954296,-250.0,0.000118,2]
[355382697,1741091954320,-250.0,0.000118,2]
[355382698,1741091954341,-250.0,0.000118,2]
[355382699,1741091954363,-250.0,0.000118,2]
[355382700,1741091954385,-250.0,0.000118,2]
[355382701,1741091954406,-250.0,0.000118,2]
[355382702,1741091954428,-250.0,0.000118,2]
[355382703,1741091954453,-250.0,0.000118,2]
[355382704,1741091954475,-250.0,0.000118,2]
[355382705,1741091954499,-250.0,0.000118,2]
[355382706,1741091954521,-250.0,0.000118,2]
[355382707,1741091954544,-250.0,0.000118,2]
[355382708,1741091954568,-250.0,0.000118,2]
[355382709,1741091954754,-250.0,0.000118,2]
[355382710,1741091954777,-250.0,0.000118,2]
[355382711,1741091954802,-250.0,0.000118,2]
[355382712,1741091954827,-295.1,0.000118,2]
[355382713,1741091954850,-151.0,0.00011803,2]
[355382714,1741091954873,-3187.0,0.00011803,2]
[355382715,1741091954896,-875.0,0.00011803,2]
[355382716,1741091954919,-380.0,0.00011808,2]
[355382717,1741091954942,-236747.73572829,0.0001181,2]
[355382718,1741091954965,-151.0,0.0001181,2]
[355382719,1741091954988,-470.764001,0.0001181,2]
[355382720,1741091955012,-470.764001,0.0001181,2]
[355382721,1741091955035,-3187.0,0.00011831,2]
[355382722,1741091955059,-875.0,0.00011831,2]
[355382723,1741091955081,-23164.0,0.00011836,2]
[355382724,1741091955106,-9008.96109994,0.00011839,2]
[355382725,1741091955129,-3187.0,0.00011858,2]
[355382726,1741091955151,-875.0,0.00011858,2]
[355382727,1741091955175,-5207.81362081,0.00011884,2]
[355382728,1741091955197,-3196.4120945,0.00011886,2]
[355382729,1741091955220,-885.116073,0.00011886,2]
[355382730,1741091955244,-1200.0,0.000119,4]
[355382731,1741091955267,-163.43135064,0.000119,2]
[355382732,1741091955290,-441.29,0.00011918,2]
[355382733,1741091955314,-881.71,0.00011918,2]
[355382734,1741091955336,-441.19,0.00011918,2]
[355382735,1741091955359,-441.19,0.00011918,2]
[355382736,1741091955381,-441.19,0.00011918,2]
[355382737,1741091955402,-441.19,0.00011918,2]
[355382738,1741091955426,-1288432.09721339,0.00012,2]
[355382739,1741091955453,-151.0,0.00012,2]
[355382740,1741091955476,-2962.51777727,0.00012,2]
[355382741,1741091955502,-470.764001,0.00012,2]
[355382742,1741091955525,-470.764001,0.00012,2]
[355382743,1741091955549,-9008.96109994,0.00012001,2]
[355382744,1741091955575,-5207.81362081,0.00012035,2]
[355382745,1741091955597,-4030.76,0.00012055,2]
[355382746,1741091955620,-162.616695,0.00012089,2]
[355382747,1741091955644,-281.0,0.0001214,2]
[355382748,1741091955669,-9008.96109994,0.00012163,2]
[355382749,1741091955693,-5207.81362081,0.00012185,2]
[355382750,1741091955716,-657.17904964,0.0001228,2]
[355382751,1741091955738,-2628.6,0.0001229,2]
[355382752,1741091955762,-9008.96109994,0.00012325,2]
[355382753,1741091955785,-151.0,0.00012329,2]
[355382754,1741091955809,-151.0,0.00012329,2]
[355382755,1741091955832,-151.0,0.00012329,2]
[355382756,1741091955854,-151.0,0.00012329,2]
[355382757,1741091955877,-151.0,0.00012329,2]
[355382758,1741091955901,-151.0,0.00012329,2]
[355382759,1741091955924,-238.230819,0.00012329,2]
[355382760,1741091955948,-151.0,0.00012329,2]
[355382761,1741091955971,-151.0,0.00012329,2]
[355382762,1741091955994,-151.0,0.00012329,2]
[355382763,1741091956017,-151.0,0.00012329,2]
[355382764,1741091956040,-151.0,0.00012329,2]
[355382765,1741091956065,-174.6094,0.00012329,2]
[355382766,1741091956088,-151.0,0.00012329,2]
[355382767,1741091956113,-151.0,0.00012329,2]
[355382768,1741091956136,-152.520204,0.00012329,2]
[355382769,1741091956158,-151.0,0.00012329,2]
[355382770,1741091956182,-151.0,0.00012329,2]
[355382771,1741091956205,-151.0,0.00012329,2]
[355382772,1741091956229,-151.0,0.00012329,2]
[355382773,1741091956251,-151.0,0.00012329,2]
[355382774,1741091956273,-236.611779,0.00012329,2]
[355382775,1741091956296,-151.0,0.00012329,2]
[355382776,1741091956320,-151.0,0.00012329,2]
[355382777,1741091956343,-151.0,0.00012329,2]
[355382778,1741091956366,-151.0,0.00012329,2]
[355382779,1741091956389,-151.0,0.00012329,2]
[355382780,1741091956411,-151.0,0.00012329,2]
[355382781,1741091956433,-151.0,0.00012329,2]
[355382782,1741091956460,-151.0,0.00012329,2]
[355382783,1741091956483,-151.0,0.00012329,2]
[355382784,1741091956507,-151.0,0.00012329,2]
[355382785,1741091956532,-151.0,0.00012329,2]
[355382786,1741091956555,-151.0,0.00012329,2]
[355382787,1741091956579,-151.0,0.00012329,2]
[355382788,1741091956602,-153.928479,0.00012329,2]
[355382789,1741091956626,-151.0,0.00012329,2]
[355382790,1741091956649,-151.0,0.00012329,2]
[355382791,1741091956673,-151.0,0.00012329,2]
[355382792,1741091956696,-188.1,0.00012329,2]
[355382793,1741091956719,-151.0,0.00012329,2]
[355382794,1741091956741,-151.0,0.00012329,2]
[355382795,1741091956764,-156.292009,0.00012329,2]
[355382796,1741091956787,-151.0,0.00012329,2]
[355382797,1741091956811,-151.0,0.00012329,2]
[355382798,1741091956833,-213.700202,0.00012329,2]
[355382799,1741091956855,-151.0,0.00012329,2]
[355382800,1741091956877,-151.0,0.00012329,2]
[355382801,1741091956899,-151.0,0.00012329,2]
[355382802,1741091956921,-151.0,0.00012329,2]
[355382803,1741091956943,-151.0,0.00012329,2]
[355382804,1741091956966,-151.0,0.00012329,2]
[355382805,1741091956988,-151.0,0.00012329,2]
[355382806,1741091957157,-151.0,0.00012329,2]
[355382807,1741091957180,-151.0,0.00012329,2]
[355382808,1741091957203,-151.0,0.00012329,2]
[355382809,1741091957225,-151.0,0.00012329,2]
[355382810,1741091957247,-151.0,0.00012329,2]
[355382811,1741091957268,-151.0,0.00012329,2]
[355382812,1741091957290,-151.0,0.00012329,2]
[355382813,1741091957312,-151.0,0.00012329,2]
[355382814,1741091957336,-151.0,0.00012329,2]
[355382815,1741091957359,-151.0,0.00012329,2]
[355382816,1741091957381,-151.0,0.00012329,2]
[355382817,1741091957403,-151.0,0.00012329,2]
[355382818,1741091957425,-230.861589,0.00012329,2]
[355382819,1741091957451,-151.0,0.00012329,2]
[355382820,1741091957475,-151.0,0.00012329,2]
[355382821,1741091957499,-151.0,0.00012329,2]
[355382822,1741091957523,-151.0,0.00012329,2]
[355382823,1741091957546,-151.0,0.00012329,2]
[355382824,1741091957571,-151.0,0.00012329,2]
[355382825,1741091957594,-151.711013,0.00012329,2]
[355382826,1741091957618,-192.3027,0.00012329,2]
[355382827,1741091957641,-192.3027,0.00012329,2]
[355382828,1741091957665,-192.3027,0.00012329,2]
[355382829,1741091957688,-192.3027,0.00012329,2]